bitfinex/quotes_BTCUSD_20220307
["timestamp","ask_amount","ask_price","bid_price","bid_amount"]
[1646623327504,0.066282,37730.0,37725.0,0.06808179]
[1646623328341,0.066282,37730.0,37727.0,0.00172726]
[1646623329542,0.566282,37730.0,37725.0,0.06541995]
[1646623329742,0.066282,37730.0,37725.0,0.13066545]
[1646623330345,0.14655329,37731.0,37729.0,0.15563313]
[1646623330545,0.14655329,37731.0,37725.0,0.06541995]
[1646623330943,0.14655329,37731.0,37729.0,0.00026511]
[1646623331144,0.14655329,37731.0,37730.0,0.00026511]
[1646623333588,0.14655329,37731.0,37725.0,0.06541995]
[1646623333589,0.16332171,37731.0,37725.0,0.06541995]
[1646623334491,0.18985171,37731.0,37726.0,0.17617693]
[1646623334787,0.32242471,37731.0,37726.0,0.17617693]
[1646623336161,0.29589471,37731.0,37726.0,0.17617693]
[1646623336764,0.32242471,37731.0,37726.0,0.17617693]
[1646623336961,0.12653,37730.0,37725.0,0.06541995]
[1646623337961,0.1,37730.0,37725.0,0.27174422]
[1646623338162,0.32960671,37731.0,37725.0,0.06541995]
[1646623338962,0.31283829,37731.0,37725.0,0.06541995]
[1646623339364,0.21283829,37731.0,37725.0,0.06541995]
[1646623339595,0.14655329,37731.0,37725.0,0.06541995]
[1646623340398,0.01413081,37729.0,37725.0,0.06541995]
[1646623340598,0.0131884,37728.0,37725.0,0.06541995]
[1646623340799,0.02653,37729.0,37725.0,0.06541995]
[1646623340997,0.01692459,37727.0,37725.0,0.06541995]
[1646623341200,0.06692459,37727.0,37725.0,0.06541995]
[1646623343639,0.51692459,37727.0,37721.0,0.05536748]
[1646623343841,0.06692459,37727.0,37721.0,0.05536748]
[1646623346244,0.12735972,37731.0,37724.0,0.22003633]
[1646623346744,0.17735972,37731.0,37724.0,0.22003633]
[1646623346997,0.17735972,37731.0,37726.0,0.22175975]
[1646623347397,0.12735972,37731.0,37729.0,0.20075605]
[1646623347606,0.76266347,37730.0,37718.0,0.30121153]
[1646623347804,0.76266347,37730.0,37711.0,0.132556]
[1646623347805,1.03718603,37728.0,37711.0,0.132556]
[1646623347999,0.02653,37722.0,37702.0,0.16898974]
[1646623348201,0.83663,37720.0,37702.0,0.16898974]
[1646623348401,0.05366994,37721.0,37703.0,0.15]
[1646623348402,0.037,37719.0,37703.0,0.15]
[1646623348599,0.037,37719.0,37718.0,0.18284529]
[1646623348800,0.037,37719.0,37718.0,0.24555969]
[1646623349598,0.037,37719.0,37718.0,0.4480964]
[1646623349802,0.7455,37727.0,37720.0,0.20784524]
[1646623349803,0.5,37727.0,37720.0,0.20784524]
[1646623350306,0.11416085,37731.0,37720.0,0.20784524]
[1646623350741,0.61416085,37731.0,37720.0,0.20784524]
[1646623350942,0.11416085,37731.0,37720.0,0.20784524]
[1646623351143,0.11416085,37731.0,37725.0,0.19633281]
[1646623351543,0.3724039,37730.0,37720.0,0.20784524]
[1646623351943,0.4224039,37730.0,37720.0,0.20784524]
[1646623352144,0.4224039,37730.0,37720.0,0.05800911]
[1646623352343,0.0157201,37728.0,37716.0,0.1659367]
[1646623352545,0.0130927,37727.0,37719.0,0.21336248]
[1646623352742,0.0168306,37726.0,37719.0,0.21336248]
[1646623352946,0.08082506,37725.0,37719.0,0.21336248]
[1646623353143,0.01555414,37723.0,37719.0,0.21336248]
[1646623354497,0.01555414,37723.0,37719.0,0.27835928]
[1646623355502,0.01555414,37723.0,37700.0,0.1]
[1646623355503,0.02653,37720.0,37700.0,0.1]
[1646623355700,0.02653,37720.0,37699.0,0.26476576]
[1646623355701,0.83663,37711.0,37699.0,0.26476576]
[1646623355899,0.83663,37708.0,37696.0,0.001]
[1646623356100,0.85135635,37706.0,37696.0,0.001]
[1646623356297,0.02653,37704.0,37696.0,0.001]
[1646623356500,0.04175306,37702.0,37696.0,0.001]
[1646623356701,0.02653,37700.0,37696.0,0.001]
[1646623356898,0.037,37699.0,37696.0,0.001]
[1646623359348,0.037,37699.0,37697.0,0.24129556]
[1646623359950,0.01522306,37702.0,37697.0,0.24129556]
[1646623360249,0.01412035,37701.0,37697.0,0.24129556]
[1646623360452,0.01407672,37700.0,37697.0,0.24129556]
[1646623360655,0.01785913,37698.0,37697.0,0.24129556]
[1646623360852,0.116335,37704.0,37697.0,0.24129556]
[1646623361254,0.116335,37704.0,37700.0,0.05546294]
[1646623361453,0.116335,37704.0,37697.0,0.24129556]
[1646623361754,0.116335,37704.0,37701.0,0.21384671]
[1646623362594,0.116335,37704.0,37702.0,0.05404898]
[1646623362996,0.066335,37704.0,37702.0,0.05404898]
[1646623363201,0.132616,37712.0,37702.0,0.05404898]
[1646623363396,0.132616,37712.0,37701.0,0.21384671]
[1646623363596,0.132616,37712.0,37708.0,0.20711435]
[1646623365097,0.05,37710.0,37708.0,0.20711435]
[1646623365297,0.116309,37710.0,37708.0,0.20711435]
[1646623365949,0.182616,37710.0,37708.0,0.20711435]
[1646623368552,0.182616,37710.0,37709.0,0.06793316]
[1646623369052,0.36336539,37728.0,37710.0,1.15]
[1646623369257,0.1,37730.0,37721.0,0.15]
[1646623369516,0.11416085,37731.0,37722.0,0.3841212]
[1646623369715,0.11416085,37731.0,37723.0,0.0531]
[1646623370108,0.11416085,37731.0,37725.0,0.20656043]
[1646623370307,0.11416085,37731.0,37726.0,0.0531]
[1646623370911,0.01388217,37730.0,37726.0,0.0531]
[1646623371108,0.11416085,37731.0,37726.0,0.0531]
[1646623371308,0.066281,37729.0,37726.0,0.0531]
[1646623371508,0.116281,37729.0,37726.0,0.0531]
[1646623371708,0.066281,37729.0,37726.0,0.0531]
[1646623372711,0.132576,37728.0,37721.0,0.3]
[1646623373110,0.182576,37728.0,37721.0,0.0531]
[1646623373351,0.116287,37728.0,37721.0,0.0531]
[1646623373557,0.116287,37728.0,37726.0,0.16778844]
[1646623373750,0.33557688,37722.0,37720.0,0.27518025]
[1646623373950,0.38557688,37722.0,37721.0,0.25402581]
[1646623374151,0.38557688,37722.0,37721.0,0.55402581]
[1646623375052,0.38557688,37722.0,37721.0,0.25402581]
[1646623375254,0.198839,37740.0,37723.0,1.15]
[1646623375462,0.1,37743.0,37734.0,0.02653]
[1646623375655,0.1,37750.0,37735.0,0.0531]
[1646623375858,0.3,37749.0,37735.0,0.2529]
[1646623376060,0.010611,37751.0,37735.0,0.2529]
[1646623376354,0.005,37746.0,37736.0,0.25709583]
[1646623376554,0.005,37746.0,37737.0,0.0531]
[1646623376756,0.005,37742.0,37737.0,0.0531]
[1646623377793,0.071265,37742.0,37732.0,0.16542347]
[1646623377998,0.3,37741.0,37732.0,0.16542347]
[1646623378194,0.005,37737.0,37732.0,0.002]
[1646623378598,0.005,37737.0,37730.0,0.01323]
[1646623379095,0.35,37741.0,37732.0,0.07119395]
[1646623379299,0.05,37741.0,37732.0,0.07119395]
[1646623379693,0.00020611,37738.0,37732.0,0.07119395]
[1646623380295,0.00020611,37738.0,37735.0,0.39368609]
[1646623380498,0.02653,37744.0,37735.0,0.39368609]
[1646623380743,0.00020811,37738.0,37735.0,0.39368609]
[1646623381544,0.00020811,37738.0,37736.0,0.066246]
[1646623381745,0.3,37750.0,37737.0,0.13393796]
[1646623381947,0.01324,37756.0,37738.0,0.07533]
[1646623381948,1.2028,37752.0,37738.0,0.07533]
[1646623382148,0.2271,37759.0,37740.0,0.02653]
[1646623382149,0.00078521,37746.0,37740.0,0.02653]
[1646623382346,0.00078521,37746.0,37744.0,0.25356504]
[1646623382745,0.00078521,37746.0,37745.0,0.16005162]
[1646623382946,0.01400563,37751.0,37745.0,0.16005162]
[1646623383147,0.01333021,37749.0,37745.0,0.16005162]
[1646623383346,0.00019634,37747.0,37745.0,0.16005162]
[1646623384245,0.01652747,37755.0,37745.0,0.16005162]
[1646623384509,0.0002083,37748.0,37745.0,0.22628162]
[1646623384913,0.0002083,37748.0,37745.0,0.16005162]
[1646623385309,0.19364797,37755.0,37745.0,0.16005162]
[1646623385509,0.066241,37753.0,37745.0,0.16005162]
[1646623385710,0.0002083,37748.0,37745.0,0.16005162]
[1646623386514,0.01350481,37752.0,37745.0,0.16005162]
[1646623386712,0.01879221,37755.0,37745.0,0.17329162]
[1646623386912,0.0002083,37748.0,37745.0,0.17329162]
[1646623387113,0.0002083,37748.0,37745.0,0.22827]
[1646623387313,0.0002083,37748.0,37746.0,0.01324]
[1646623387512,0.0002083,37748.0,37747.0,0.04906488]
[1646623387714,0.0002083,37748.0,37747.0,0.06230488]
[1646623387913,0.005,37760.0,37755.0,0.19146086]
[1646623388114,0.01992669,37760.0,37758.0,0.24501592]
[1646623388357,0.01488702,37759.0,37758.0,0.24501592]
[1646623388556,0.01345276,37759.0,37758.0,0.24501592]
[1646623388760,0.005,37760.0,37758.0,0.24501592]
[1646623388957,0.01915808,37760.0,37758.0,0.24501592]
[1646623389162,0.01563535,37759.0,37758.0,0.24501592]
[1646623389357,0.0002079,37760.0,37755.0,0.4376594]
[1646623389555,0.0162712,37759.0,37756.0,0.066211]
[1646623389757,0.0002079,37760.0,37756.0,0.066211]
[1646623390156,0.31327379,37766.0,37756.0,0.066211]
[1646623390459,0.0002079,37760.0,37756.0,0.066211]
[1646623390656,0.0002079,37760.0,37757.0,0.21752846]
[1646623390856,0.0002079,37760.0,37758.0,0.06204]
[1646623391457,0.01420606,37763.0,37758.0,0.06204]
[1646623391661,0.0002079,37761.0,37758.0,0.06204]
[1646623391858,0.0002079,37761.0,37758.0,0.0488]
[1646623392498,0.01515188,37765.0,37758.0,0.0488]
[1646623392697,0.0166718,37766.0,37758.0,0.0488]
[1646623392899,0.00020923,37761.0,37759.0,0.16564996]
[1646623393797,0.0131338,37766.0,37759.0,0.21444996]
[1646623393999,0.00020923,37762.0,37759.0,0.30242996]
[1646623394202,0.00020923,37762.0,37761.0,0.21480405]
[1646623394500,0.00020923,37762.0,37760.0,0.1]
[1646623394700,0.00020923,37762.0,37759.0,0.0488]
[1646623394899,0.00520923,37762.0,37759.0,0.0488]
[1646623395099,0.01626987,37761.0,37759.0,0.0488]
[1646623395300,0.005,37762.0,37759.0,0.0488]
[1646623395301,0.0162478,37760.0,37759.0,0.0488]
[1646623395499,0.005,37762.0,37759.0,0.0488]
[1646623395749,0.00020923,37763.0,37759.0,0.0488]
[1646623396152,0.116216,37767.0,37759.0,0.0488]
[1646623396351,0.005,37762.0,37758.0,0.19150285]
[1646623396552,0.005,37763.0,37756.0,0.01324]
[1646623396758,0.06623,37763.0,37755.0,0.01324]
[1646623397055,0.05,37758.0,37750.0,0.20140112]
[1646623397254,0.05,37758.0,37745.0,0.81607298]
[1646623397255,0.18501399,37753.0,37745.0,0.4315741]
[1646623397452,0.005,37749.0,37745.0,0.20140112]
[1646623397655,0.005,37748.0,37741.0,0.43837262]
[1646623398052,0.005,37748.0,37743.0,0.05870104]
[1646623398253,0.116249,37753.0,37743.0,0.05870104]
[1646623398452,0.00432747,37748.0,37741.0,0.43837262]
[1646623398652,0.116249,37753.0,37747.0,0.21050294]
[1646623398853,0.05432747,37753.0,37747.0,0.21050294]
[1646623399253,0.00432747,37753.0,37747.0,0.50312239]
[1646623399501,0.00432747,37753.0,37747.0,0.21050294]
[1646623399698,0.00432747,37753.0,37745.0,0.21369823]
[1646623399699,0.05,37756.0,37745.0,0.21369823]
[1646623399901,0.00432747,37748.0,37745.0,0.21369823]
[1646623400098,0.00432747,37748.0,37741.0,0.1]
[1646623400500,0.00432747,37748.0,37745.0,0.26931244]
[1646623400699,0.00432747,37752.0,37746.0,0.21522041]
[1646623401099,0.00432747,37752.0,37746.0,0.43263857]
[1646623401299,0.132486,37755.0,37746.0,0.43263857]
[1646623401703,0.00432747,37748.0,37746.0,0.43263857]
[1646623401900,0.00432747,37752.0,37746.0,0.43263857]
[1646623402301,0.05,37754.0,37745.0,0.26931244]
[1646623402503,0.00432747,37747.0,37741.0,0.1]
[1646623402704,0.00432747,37747.0,37740.0,0.1]
[1646623402900,0.00432747,37747.0,37739.0,0.29164937]
[1646623403100,0.00432747,37747.0,37739.0,0.1]
[1646623403353,0.00432747,37747.0,37743.0,0.3791517]
[1646623405249,0.00432747,37747.0,37743.0,0.19974167]
[1646623405650,0.00432747,37747.0,37739.0,0.1]
[1646623406049,0.00432747,37747.0,37741.0,0.066238]
[1646623406251,0.00432747,37747.0,37744.0,0.19401038]
[1646623406998,0.01554465,37747.0,37744.0,0.59347305]
[1646623407198,0.01604036,37746.0,37744.0,0.59347305]
[1646623407400,0.01594338,37745.0,37744.0,0.59347305]
[1646623407599,0.01480906,37745.0,37744.0,0.59347305]
[1646623407796,0.00432747,37750.0,37744.0,0.40576795]
[1646623408600,0.00432747,37747.0,37740.0,0.232465]
[1646623408800,0.00432747,37747.0,37740.0,0.3255693]
[1646623408999,0.01420941,37748.0,37740.0,0.132465]
[1646623409204,0.01420941,37748.0,37738.0,0.03908101]
[1646623409205,0.00432747,37741.0,37738.0,0.03908101]
[1646623409402,0.47074685,37748.0,37731.0,0.2272]
[1646623409403,0.00432747,37739.0,37731.0,0.2272]
[1646623409601,0.50034685,37748.0,37734.0,0.1890017]
[1646623409602,0.00432747,37738.0,37734.0,0.1890017]
[1646623410002,0.50034685,37748.0,37734.0,0.1890017]
[1646623410003,0.066269,37741.0,37734.0,0.1890017]
[1646623410200,0.00432747,37736.0,37732.0,0.49279711]
[1646623410852,0.00432747,37736.0,37732.0,0.27331589]
[1646623411048,0.38879317,37742.0,37729.0,0.04025068]
[1646623411250,0.01521308,37736.0,37730.0,0.18795976]
[1646623411451,0.38879317,37742.0,37730.0,0.18795976]
[1646623411452,0.01302175,37741.0,37730.0,0.18795976]
[1646623412050,0.066269,37739.0,37730.0,0.18795976]
[1646623412250,0.00432747,37734.0,37730.0,0.18795976]
[1646623413049,0.00432747,37734.0,37731.0,0.07280319]
[1646623413650,0.00432747,37736.0,37731.0,0.07280319]
[1646623414698,0.00432747,37736.0,37734.0,0.18258694]
[1646623414899,0.00432747,37737.0,37734.0,0.18258694]
[1646623415097,0.06302175,37741.0,37734.0,0.18258694]
[1646623415098,0.00432747,37740.0,37734.0,0.18258694]
[1646623415302,0.01302175,37741.0,37734.0,0.18258694]
[1646623415497,0.02117705,37740.0,37734.0,0.18258694]
[1646623415698,0.00432747,37737.0,37734.0,0.18258694]
[1646623416102,0.01560256,37738.0,37734.0,0.18258694]
[1646623416302,0.01415687,37742.0,37740.0,0.15431791]
[1646623416501,0.2361,37753.0,37740.0,0.15431791]
[1646623416702,0.47813054,37752.0,37740.0,0.22956791]
[1646623416902,0.31653054,37752.0,37740.0,0.22956791]
[1646623417302,0.31653054,37752.0,37746.0,0.05313943]
[1646623417303,0.01653054,37752.0,37746.0,0.05313943]
[1646623417507,0.86361916,37758.0,37749.0,0.16667608]
[1646623417508,0.553,37758.0,37749.0,0.16667608]
[1646623417705,0.33335216,37748.0,37745.0,0.1]
[1646623417904,0.33335216,37748.0,37746.0,0.18342968]
[1646623419553,0.30835216,37748.0,37746.0,0.18342968]
[1646623420353,0.35835216,37748.0,37746.0,0.18342968]
[1646623422200,0.00073712,37759.0,37748.0,1.15]
[1646623422398,0.01326535,37757.0,37752.0,0.2065585]
[1646623422600,0.0161353,37756.0,37752.0,0.2065585]
[1646623422797,0.01588286,37755.0,37752.0,0.46482922]
[1646623422998,0.19172056,37761.0,37752.0,0.65825519]
[1646623423202,0.01614689,37760.0,37752.0,0.65825519]
[1646623424401,0.06369928,37761.0,37753.0,0.132421]
[1646623424598,0.0140692,37758.0,37752.0,0.69806686]
[1646623424800,0.01799836,37757.0,37752.0,0.69806686]
[1646623424999,0.02219926,37763.0,37752.0,0.69806686]
[1646623425202,0.01638711,37761.0,37753.0,0.1]
[1646623425401,0.01699695,37760.0,37753.0,0.1]
[1646623425603,0.01426693,37759.0,37753.0,0.1]
[1646623425851,0.00508188,37763.0,37753.0,0.1]
[1646623425852,0.02036806,37763.0,37753.0,0.1]
[1646623426052,0.01562298,37761.0,37753.0,0.1]
[1646623426248,0.01714136,37760.0,37753.0,0.1]
[1646623426449,0.01779706,37763.0,37753.0,0.1]
[1646623426650,0.00432747,37763.0,37753.0,0.1]
[1646623427050,0.01422342,37763.0,37758.0,0.19835715]
[1646623427350,0.0152294,37761.0,37753.0,0.1]
[1646623427549,0.01456264,37760.0,37753.0,0.1]
[1646623427750,0.01416748,37759.0,37753.0,0.1]
[1646623428150,0.05432747,37764.0,37753.0,0.1]
[1646623428151,0.01429746,37758.0,37753.0,0.1]
[1646623428353,0.01429746,37758.0,37755.0,0.21297705]
[1646623428949,0.01427001,37763.0,37758.0,0.18769903]
[1646623429149,0.01406807,37761.0,37758.0,0.18769903]
[1646623429352,0.00508427,37764.0,37758.0,0.18769903]
[1646623429601,0.01396866,37760.0,37758.0,0.18769903]
[1646623429802,0.00508427,37764.0,37755.0,0.21297705]
[1646623430001,0.00432747,37764.0,37755.0,0.21297705]
[1646623430201,0.00018922,37765.0,37753.0,0.1]
[1646623430403,0.01727723,37757.0,37752.0,0.39808239]
[1646623430805,0.066228,37761.0,37755.0,0.20968434]
[1646623431201,0.116228,37761.0,37755.0,0.20968434]
[1646623431601,0.116228,37761.0,37755.0,0.30968434]
[1646623431802,0.05,37761.0,37755.0,0.30968434]
[1646623432203,0.00075681,37762.0,37755.0,0.30968434]
[1646623432402,0.00432747,37764.0,37755.0,0.30968434]
[1646623432602,0.14293816,37765.0,37755.0,0.30968434]
[1646623432804,0.00432747,37762.0,37755.0,0.30968434]
[1646623433248,0.00432747,37762.0,37755.0,0.1]
[1646623433653,0.00432747,37760.0,37753.0,0.1]
[1646623433856,0.132466,37759.0,37752.0,0.03981167]
[1646623434051,0.132466,37759.0,37747.0,0.70833351]
[1646623434052,0.00432747,37754.0,37747.0,0.68333351]
[1646623434252,0.32653,37758.0,37747.0,0.68333351]
[1646623434253,0.00432747,37753.0,37747.0,0.68333351]
[1646623434454,0.23981086,37756.0,37747.0,0.68333351]
[1646623434455,0.00432747,37748.0,37747.0,0.68333351]
[1646623434652,0.39434647,37748.0,37747.0,0.68333351]
[1646623434852,0.39434647,37748.0,37741.0,0.06191]
[1646623434853,0.02653,37747.0,37741.0,0.06191]
[1646623435053,0.092791,37747.0,37741.0,0.06191]
[1646623435353,0.00432747,37742.0,37741.0,0.06191]
[1646623436356,0.35245662,37746.0,37741.0,0.06191]
[1646623436556,0.00432747,37745.0,37741.0,0.06191]
[1646623437200,0.00432747,37746.0,37743.0,0.1921734]
[1646623437399,0.00432747,37746.0,37743.0,0.45219813]
[1646623438000,0.00432747,37746.0,37743.0,0.52022895]
[1646623438199,0.00432747,37746.0,37743.0,0.26002473]
[1646623439000,0.41870062,37751.0,37743.0,0.26002473]
[1646623439202,0.5757,37758.0,37744.0,0.26036429]
[1646623439203,0.641935,37758.0,37744.0,0.26036429]
[1646623439401,0.0050781,37759.0,37744.0,0.066224]
[1646623439599,0.00432747,37759.0,37744.0,0.166224]
[1646623439801,0.00432747,37759.0,37744.0,0.191224]
[1646623440001,0.00507823,37759.0,37745.0,0.1998]
[1646623440201,0.00432747,37758.0,37752.0,0.05309755]
[1646623440401,0.00432747,37756.0,37745.0,1.18765]
[1646623440600,0.00432747,37756.0,37750.0,0.1]
[1646623440849,0.00432747,37756.0,37749.0,0.29372927]
[1646623441048,0.01698593,37756.0,37749.0,0.29372927]
[1646623441250,0.00432747,37756.0,37749.0,0.29372927]
[1646623441454,0.0154357,37754.0,37750.0,0.05940665]
[1646623441651,0.35245662,37758.0,37750.0,0.26088371]
[1646623441652,0.01674928,37753.0,37750.0,0.26088371]
[1646623441853,0.00432747,37756.0,37750.0,0.05940665]
[1646623442054,0.01340516,37752.0,37750.0,0.05940665]
[1646623442258,0.00432747,37756.0,37750.0,0.05940665]
[1646623442454,0.01771246,37757.0,37750.0,0.12563065]
[1646623442655,0.01435484,37756.0,37750.0,0.22563065]
[1646623442855,0.0173111,37755.0,37750.0,0.22563065]
[1646623443054,0.01710799,37754.0,37750.0,0.22563065]
[1646623443456,0.00075161,37760.0,37753.0,0.32786709]
[1646623443656,0.01418728,37760.0,37753.0,0.32635313]
[1646623443856,0.01418728,37760.0,37754.0,0.1]
[1646623444056,0.01413859,37759.0,37754.0,0.1]
[1646623444253,0.01552713,37758.0,37754.0,0.1]
[1646623444508,0.01742253,37757.0,37755.0,0.43030336]
[1646623444708,0.01742253,37757.0,37756.0,0.06238308]
[1646623446319,0.00074621,37764.0,37756.0,0.06238308]
[1646623446513,0.00018655,37765.0,37756.0,0.06238308]
[1646623446514,0.00018655,37765.0,37762.0,1.3092]
[1646623446717,0.0022,37775.0,37764.0,1.32351695]
[1646623446916,0.0022,37775.0,37771.0,0.14567253]
[1646623447109,0.0033,37778.0,37773.0,1.29567253]
[1646623447110,0.01774404,37774.0,37773.0,1.29567253]
[1646623447309,0.0011,37782.0,37774.0,0.38521292]
[1646623447509,0.0011,37782.0,37778.0,0.19402282]
[1646623447714,0.0011,37782.0,37778.0,0.24702282]
[1646623448555,0.0011,37782.0,37778.0,0.26025282]
[1646623449156,0.0011,37782.0,37778.0,0.56025282]
[1646623449359,0.0011,37782.0,37778.0,0.66025282]
[1646623449557,0.0011,37782.0,37778.0,0.36025282]
[1646623449960,0.0011,37782.0,37778.0,0.053]
[1646623450163,0.0011,37782.0,37769.0,0.71]
[1646623450164,0.5219655,37777.0,37769.0,0.763]
[1646623450361,0.5219655,37777.0,37769.0,0.053]
[1646623450362,0.00432747,37775.0,37769.0,0.053]
[1646623450959,0.3,37776.0,37772.0,0.05632772]
[1646623451164,0.01771664,37776.0,37773.0,0.17691561]
[1646623451363,0.5719655,37777.0,37773.0,0.17691561]
[1646623451559,0.5719655,37777.0,37773.0,0.19014561]
[1646623451759,0.01633594,37776.0,37773.0,0.19014561]
[1646623452011,0.01654627,37776.0,37773.0,0.19014561]
[1646623452207,0.5219655,37777.0,37773.0,0.19014561]
[1646623452607,0.53804976,37777.0,37773.0,0.19014561]
[1646623452808,0.53804976,37777.0,37774.0,0.02653]
[1646623452809,0.5219655,37777.0,37774.0,0.02653]
[1646623453007,0.5219655,37777.0,37776.0,0.14300453]
[1646623453008,0.5157655,37777.0,37776.0,0.14300453]
[1646623453208,0.5157655,37777.0,37776.0,0.24887153]
[1646623453607,0.5157655,37777.0,37776.0,0.18270453]
[1646623453814,0.53346645,37777.0,37776.0,0.18270453]
[1646623454010,0.5157655,37777.0,37776.0,0.16947453]
[1646623454208,0.5657655,37777.0,37776.0,0.16947453]
[1646623454612,0.5657655,37777.0,37775.0,0.1]
[1646623454810,0.5657655,37777.0,37773.0,0.04066181]
[1646623455610,0.5657655,37777.0,37775.0,0.18168777]
[1646623455865,0.5657655,37777.0,37774.0,0.066179]
[1646623456065,0.31595898,37776.0,37773.0,0.14066181]
[1646623456266,0.31595898,37776.0,37773.0,0.04066181]
[1646623456267,0.01595898,37776.0,37773.0,0.04066181]
[1646623456664,0.14835898,37776.0,37773.0,0.04066181]
[1646623457064,0.14835898,37776.0,37773.0,0.2384778]
[1646623457269,0.5657655,37777.0,37773.0,0.2384778]
[1646623457966,0.5657655,37777.0,37773.0,0.3046608]
[1646623458165,0.5657655,37777.0,37773.0,0.2384778]
[1646623458966,0.01552849,37776.0,37773.0,0.04066181]
[1646623459507,0.01985596,37776.0,37773.0,0.04066181]
[1646623459915,0.01089721,37775.0,37773.0,0.04066181]
[1646623461008,0.07709321,37775.0,37773.0,0.04066181]
[1646623461208,0.05,37774.0,37773.0,0.04066181]
[1646623461409,0.05,37774.0,37773.0,0.04092657]
[1646623461808,0.37653,37774.0,37768.0,0.006]
[1646623462018,0.00432747,37769.0,37768.0,0.006]
[1646623462211,0.066221,37766.0,37761.0,0.23203253]
[1646623462512,0.07715026,37766.0,37761.0,0.03994173]
[1646623462714,0.05,37765.0,37761.0,0.03994173]
[1646623462910,0.35,37765.0,37762.0,0.20868917]
[1646623463111,0.3,37765.0,37762.0,0.20868917]
[1646623463354,0.3,37765.0,37757.0,0.30795653]
[1646623463355,0.32653,37765.0,37757.0,0.30795653]
[1646623463555,0.32653,37765.0,37760.0,0.1]
[1646623463757,0.32653,37765.0,37758.0,0.11324]
[1646623463955,0.32653,37765.0,37758.0,0.01324]
[1646623464157,0.32653,37765.0,37758.0,0.11324]
[1646623464357,0.34247376,37765.0,37762.0,0.20097937]
[1646623464659,0.00432747,37764.0,37762.0,0.20097937]
[1646623465560,0.01594376,37765.0,37762.0,0.20097937]
[1646623465759,0.01594376,37765.0,37764.0,0.00026483]
[1646623466159,0.01594376,37765.0,37762.0,0.20097937]
[1646623466359,0.01594376,37765.0,37758.0,0.11324]
[1646623466562,0.00432747,37764.0,37758.0,0.01324]
[1646623466761,0.01520464,37758.0,37757.0,0.03906808]
[1646623467026,0.01520464,37758.0,37749.0,0.19233006]
[1646623467226,0.132466,37755.0,37753.0,0.004]
[1646623467423,0.11112516,37755.0,37754.0,0.01324]
[1646623467627,0.06520464,37758.0,37754.0,0.01324]
[1646623468523,0.05,37758.0,37754.0,0.01324]
[1646623469723,0.05,37758.0,37754.0,0.11324]
[1646623470624,0.0102701,37757.0,37754.0,0.11324]
[1646623471058,0.06254337,37758.0,37754.0,0.11324]
[1646623471355,0.05,37758.0,37754.0,0.11324]
[1646623471555,0.05,37758.0,37757.0,0.0002649]
[1646623472158,0.01159713,37762.0,37757.0,0.0002649]
[1646623472358,0.07053747,37766.0,37756.0,0.25358814]
[1646623472661,0.5157655,37777.0,37756.0,0.25358814]
[1646623472662,0.04001918,37779.0,37762.0,1.15]
[1646623472869,0.27993795,37781.0,37774.0,0.14567253]
[1646623472870,0.00184995,37781.0,37774.0,0.14567253]
[1646623473056,0.00184995,37781.0,37780.0,0.25442974]
[1646623473258,0.00184995,37781.0,37780.0,0.01323]
[1646623473459,0.0011,37781.0,37780.0,0.36623]
[1646623473656,0.0011,37781.0,37780.0,0.46649463]
[1646623474058,0.0011,37782.0,37780.0,0.16649463]
[1646623474256,0.0011,37782.0,37780.0,0.153]
[1646623474507,0.0011,37785.0,37781.0,0.00026471]
[1646623474508,0.00432747,37785.0,37781.0,0.00026471]
[1646623474705,0.00432747,37785.0,37780.0,0.153]
[1646623474906,0.00018919,37783.0,37780.0,0.153]
[1646623475105,0.00018919,37783.0,37782.0,0.11647144]
[1646623475907,0.0027,37786.0,37782.0,0.18262149]
[1646623476110,0.0027,37786.0,37782.0,0.33104178]
[1646623476111,0.00018919,37784.0,37782.0,0.33104178]
[1646623476308,0.00018919,37784.0,37783.0,0.1]
[1646623476710,0.00218388,37786.0,37784.0,0.5]
[1646623477110,0.00218388,37786.0,37785.0,0.1]
[1646623477410,0.00218388,37786.0,37783.0,0.1]
[1646623477611,0.00218388,37786.0,37785.0,0.18483699]
[1646623478249,0.00218388,37786.0,37784.0,0.01323]
[1646623478453,0.01598545,37786.0,37783.0,0.01323]
[1646623478651,0.01598545,37786.0,37783.0,0.079397]
[1646623478652,0.00218388,37786.0,37783.0,0.079397]
[1646623478851,0.01720881,37784.0,37783.0,0.01323]
[1646623479550,0.132373,37784.0,37778.0,0.1]
[1646623479750,0.132373,37784.0,37777.0,0.19852552]
[1646623479951,0.01344748,37781.0,37777.0,0.19852552]
[1646623480154,0.16492845,37789.0,37788.0,0.0954607]
[1646623480351,0.16492845,37789.0,37766.0,0.65615233]
[1646623480352,1.15,37788.0,37766.0,0.65615233]
[1646623480557,0.16476407,37786.0,37773.0,0.20123436]
[1646623480852,0.16476407,37786.0,37766.0,0.132381]
[1646623480853,0.03166407,37786.0,37767.0,0.5235]
[1646623481051,0.03166407,37786.0,37778.0,0.007]
[1646623481353,0.01228447,37782.0,37780.0,0.16587629]
[1646623481550,0.08044259,37783.0,37780.0,0.16587629]
[1646623481753,0.08044259,37783.0,37778.0,0.007]
[1646623482204,0.08044259,37783.0,37773.0,0.01323]
[1646623482606,0.08044259,37783.0,37773.0,0.11323]
[1646623482811,0.08044259,37783.0,37773.0,0.19070083]
[1646623483209,0.08044259,37783.0,37773.0,0.48012018]
[1646623483605,0.08044259,37783.0,37774.0,0.1]
[1646623483816,0.4908,37790.0,37774.0,0.1]
[1646623483817,0.21484926,37803.0,37782.0,0.6]
[1646623484009,0.0022,37803.0,37795.0,0.1998]
[1646623484208,0.0022,37803.0,37790.0,0.30205999]
[1646623484209,0.0011,37808.0,37802.0,0.06458191]
[1646623484407,0.0011,37808.0,37803.0,0.31322]
[1646623484607,0.0011,37808.0,37804.0,0.053]
[1646623484813,0.4084,37809.0,37807.0,0.79643796]
[1646623485008,0.0011,37811.0,37809.0,0.02653]
[1646623485211,0.0011,37811.0,37810.0,0.88918796]
[1646623485410,0.0011,37814.0,37811.0,0.23349684]
[1646623485611,0.0011,37814.0,37813.0,0.13393796]
[1646623485867,0.0011,37814.0,37813.0,0.06218446]
[1646623486066,0.0011,37814.0,37813.0,0.0487]
[1646623486267,0.0011,37817.0,37813.0,0.0487]
[1646623486268,0.01308888,37816.0,37813.0,0.0487]
[1646623487069,0.15,37814.0,37813.0,0.0001]